bitfinex-derivatives/quotes_BTCF0:USTF0_20241020
["timestamp","ask_amount","ask_price","bid_price","bid_amount"]
[1729442969749,0.08045927,68597.0,68596.0,0.072901]
[1729442970151,0.04475406,68597.0,68596.0,0.0729]
[1729442970451,0.08045927,68597.0,68596.0,0.0729]
[1729442970854,0.08045927,68599.0,68596.0,0.0729]
[1729442972052,0.08045927,68599.0,68593.0,0.47871486]
[1729442972248,0.08045927,68599.0,68597.0,0.0729]
[1729442973949,0.08045927,68598.0,68597.0,0.0729]
[1729442975546,0.08045927,68598.0,68597.0,0.4337]
[1729442976251,0.072894,68603.0,68597.0,0.65793419]
[1729442976453,0.072894,68603.0,68602.0,0.08741247]
[1729442976653,0.0932,68607.0,68602.0,0.19009837]
[1729442976861,0.166089,68607.0,68606.0,0.07284342]
[1729442977050,0.166089,68607.0,68606.0,0.17552932]
[1729442977249,0.166089,68607.0,68606.0,0.1026859]
[1729442980655,0.166089,68607.0,68606.0,0.10270199]
[1729442981259,0.166089,68607.0,68606.0,0.19011446]
[1729442983350,0.072891,68605.0,68604.0,0.11665415]
[1729442983859,0.072891,68605.0,68604.0,0.04376215]
[1729442984061,0.072892,68604.0,68601.0,0.04376567]
[1729442984363,0.072892,68604.0,68597.0,0.0729]
[1729442984364,0.3608,68602.0,68599.0,0.04376567]
[1729442984563,0.072897,68600.0,68599.0,0.04376567]
[1729442985360,0.072898,68599.0,68598.0,0.04376567]
[1729442986364,0.072898,68599.0,68598.0,0.04374863]
[1729442987262,0.072898,68599.0,68597.0,0.0729]
[1729442987565,0.072898,68599.0,68597.0,0.11664863]
[1729442987765,0.072898,68599.0,68597.0,0.04374863]
[1729442988267,0.072898,68599.0,68593.0,0.072904]
[1729442988268,0.072898,68599.0,68596.0,0.04374863]
[1729442988449,0.072898,68599.0,68597.0,0.04374863]
[1729442989364,0.072898,68599.0,68596.0,0.04374863]
[1729442990857,0.072898,68599.0,68597.0,0.04374863]
[1729442991366,0.08046279,68598.0,68588.0,0.43549985]
[1729442991553,0.08046279,68597.0,68588.0,0.33550946]
[1729442991759,0.08046279,68596.0,68595.0,0.072902]
[1729442995159,0.08046197,68596.0,68595.0,0.072902]
[1729442995358,0.03570641,68596.0,68595.0,0.072902]
[1729442995653,0.08046197,68596.0,68595.0,0.072902]
[1729442996867,0.03570641,68596.0,68595.0,0.072902]
[1729442997465,0.08046197,68596.0,68595.0,0.09877174]
[1729442997766,0.03570641,68596.0,68595.0,0.09877174]
[1729442998165,0.08046197,68596.0,68595.0,0.09877174]
[1729442998471,0.072898,68599.0,68595.0,0.32772378]
[1729442998774,0.072898,68599.0,68596.0,0.22895204]
[1729442998962,0.072898,68599.0,68595.0,0.09877174]
[1729442998963,0.072898,68599.0,68597.0,0.22895204]
[1729442999162,0.072898,68599.0,68595.0,0.09877174]
[1729442999163,0.072898,68599.0,68598.0,0.10448999]
[1729442999757,0.072898,68599.0,68598.0,0.10449065]
[1729443002859,0.3608,68603.0,68596.0,0.07289741]
[1729443002860,0.0729,68597.0,68596.0,0.07289741]
[1729443003170,0.0729,68597.0,68596.0,0.10463462]
[1729443003572,0.0729,68597.0,68596.0,0.17751614]
[1729443003769,0.0729,68597.0,68596.0,0.07288152]
[1729443003960,0.0729,68597.0,68596.0,0.17755253]
[1729443003961,0.315,68597.0,68596.0,0.17755253]
[1729443004662,0.315,68597.0,68596.0,0.07288152]
[1729443005372,0.0729,68597.0,68596.0,0.07288152]
[1729443005671,0.072901,68596.0,68595.0,0.07288152]
[1729443005874,0.463901,68596.0,68595.0,0.07288152]
[1729443006063,0.463901,68596.0,68595.0,0.17753084]
[1729443006458,0.463901,68596.0,68591.0,0.072906]
[1729443006459,0.52377421,68596.0,68591.0,0.072906]
[1729443006669,0.072904,68594.0,68591.0,0.072906]
[1729443006973,0.0804715,68593.0,68591.0,0.072906]
[1729443007670,0.0804715,68593.0,68592.0,0.072905]
[1729443007866,0.0804715,68593.0,68586.0,0.063]
[1729443007867,0.08047001,68593.0,68586.0,0.063]
[1729443008064,0.08047001,68592.0,68591.0,0.072906]
[1729443008260,0.08047001,68592.0,68587.0,0.072911]
[1729443008458,0.08047001,68591.0,68590.0,0.072907]
[1729443012571,0.08046632,68591.0,68590.0,0.072907]
[1729443012877,0.08046632,68594.0,68590.0,0.072907]
[1729443013075,0.08046632,68593.0,68590.0,0.072907]
[1729443013379,0.072902,68595.0,68591.0,0.37342189]
[1729443013564,0.3608,68596.0,68593.0,0.10208749]
[1729443013879,0.3608,68596.0,68594.0,0.22890373]
[1729443014079,0.433701,68596.0,68595.0,0.22890373]
[1729443015268,0.433701,68596.0,68595.0,0.30180573]
[1729443015471,0.433701,68596.0,68595.0,0.54796209]
[1729443017675,0.433701,68596.0,68595.0,0.4458746]
[1729443018081,0.433701,68596.0,68595.0,0.54787418]
[1729443019287,0.433701,68596.0,68595.0,0.57409072]
[1729443019787,0.433701,68596.0,68595.0,0.47209114]
[1729443021176,0.433701,68596.0,68595.0,0.3729726]
[1729443021583,0.51416671,68596.0,68593.0,0.072904]
[1729443021772,0.08046571,68595.0,68593.0,0.09920354]
[1729443021972,0.08046571,68594.0,68593.0,0.09920354]
[1729443028480,0.38362792,68596.0,68593.0,0.47192798]
[1729443028673,0.38262792,68596.0,68594.0,0.47476427]
[1729443028977,0.38262792,68596.0,68595.0,0.22865557]
[1729443029373,0.38262792,68596.0,68595.0,0.3306954]
[1729443029573,0.38262792,68596.0,68595.0,0.22865557]
[1729443030483,0.38262792,68596.0,68595.0,0.3723269]
[1729443031777,0.38262792,68596.0,68595.0,0.47339998]
[1729443031978,0.38262792,68596.0,68595.0,0.3713448]
[1729443032275,0.38262792,68596.0,68595.0,0.32968298]
[1729443032674,0.38262792,68596.0,68595.0,0.47340329]
[1729443032872,0.38262792,68596.0,68595.0,0.32968298]
[1729443033284,0.30972592,68596.0,68595.0,0.54630642]
[1729443033481,0.30972592,68596.0,68595.0,0.30053056]
[1729443033689,0.072898,68599.0,68595.0,0.30053056]
[1729443033879,0.072898,68599.0,68596.0,0.22762856]
[1729443034188,0.072898,68599.0,68597.0,0.22762856]
[1729443034386,0.072898,68599.0,68598.0,0.10384696]
[1729443035873,0.072898,68599.0,68598.0,0.22767352]
[1729443036078,0.072898,68599.0,68598.0,0.17674596]
[1729443036391,0.072898,68599.0,68598.0,0.1767942]
[1729443038982,0.072898,68599.0,68598.0,0.1038952]
[1729443040088,0.072898,68599.0,68598.0,0.1767942]
[1729443042281,0.3608,68602.0,68601.0,0.072896]
[1729443042481,0.433695,68602.0,68601.0,0.1767912]
[1729443043585,0.49356291,68602.0,68588.0,0.05536683]
[1729443043790,0.18966216,68598.0,68597.0,0.0729]
[1729443043988,0.27012681,68598.0,68597.0,0.0729]
[1729443044192,0.32242507,68598.0,68597.0,0.0729]
[1729443044379,0.27012681,68598.0,68597.0,0.0729]
[1729443044584,0.08046465,68598.0,68597.0,0.0729]
[1729443045587,0.13276291,68598.0,68597.0,0.0729]
[1729443045799,0.20566191,68598.0,68597.0,0.0729]
[1729443046793,0.15336365,68598.0,68597.0,0.0729]
[1729443048291,0.20566191,68598.0,68597.0,0.0729]
[1729443048492,0.3953316,68598.0,68597.0,0.0729]
[1729443048686,0.34303334,68598.0,68597.0,0.0729]
[1729443049288,0.20566191,68598.0,68597.0,0.0729]
[1729443049482,0.15336365,68598.0,68597.0,0.0729]
[1729443049898,0.15336365,68598.0,68597.0,0.09932685]
[1729443050090,0.20566191,68598.0,68597.0,0.09932685]
[1729443050285,0.15336365,68598.0,68597.0,0.09932685]
[1729443050992,0.20566191,68598.0,68597.0,0.09932685]
[1729443051296,0.34303047,68598.0,68597.0,0.09932685]
[1729443051494,0.26256582,68598.0,68597.0,0.20398946]
[1729443051688,0.072899,68598.0,68597.0,0.20398946]
[1729443053701,0.072899,68598.0,68597.0,0.32874798]
[1729443056096,0.072899,68598.0,68597.0,0.20398946]
[1729443058499,0.15336492,68598.0,68597.0,0.09932685]
[1729443058704,0.08046592,68598.0,68588.0,0.23197384]
[1729443059005,0.15336592,68597.0,68595.0,0.072901]
[1729443059204,0.08046592,68596.0,68595.0,0.072901]
[1729443059803,0.15336692,68596.0,68595.0,0.072901]
[1729443060105,0.15336692,68596.0,68588.0,0.19333442]
[1729443060106,0.072904,68594.0,68592.0,0.072905]
[1729443060296,0.15336992,68593.0,68592.0,0.072905]
[1729443061202,0.072904,68593.0,68592.0,0.072905]
[1729443061402,0.10861277,68593.0,68592.0,0.072905]
[1729443061604,0.072904,68593.0,68592.0,0.072905]
[1729443062810,0.1086127,68593.0,68592.0,0.072905]
[1729443063108,0.15337114,68593.0,68592.0,0.072905]
[1729443065014,0.15337143,68593.0,68592.0,0.072905]
[1729443066100,0.072904,68593.0,68592.0,0.30429852]
[1729443067004,0.0308,68595.0,68592.0,0.30429852]
[1729443067211,0.0308,68595.0,68593.0,0.23139352]
[1729443067512,0.0308,68595.0,68592.0,0.072905]
[1729443067513,0.0308,68595.0,68594.0,0.23139352]
[1729443070512,0.103702,68595.0,68594.0,0.23139352]
[1729443071913,0.103702,68595.0,68594.0,0.30429652]
[1729443079222,0.103702,68595.0,68594.0,0.30364176]
[1729443080035,0.103702,68595.0,68594.0,0.17816887]
[1729443081329,0.18417148,68595.0,68594.0,0.072903]
[1729443084032,0.11126875,68595.0,68594.0,0.072903]
[1729443084241,0.1635689,68595.0,68594.0,0.072903]
[1729443085526,0.1635689,68595.0,68594.0,0.0492212]
[1729443087737,0.08046875,68595.0,68594.0,0.0492212]
[1729443087931,0.13276847,68595.0,68594.0,0.0492212]
[1729443088241,0.072891,68606.0,68601.0,0.072895]
[1729443088437,0.072891,68606.0,68602.0,0.30344745]
[1729443088626,0.072891,68606.0,68597.0,0.4628676]
[1729443088627,0.072891,68606.0,68603.0,0.30344745]
[1729443089135,0.072891,68606.0,68604.0,0.10518133]
[1729443089335,0.072891,68606.0,68605.0,0.10518133]
[1729443089935,0.072891,68606.0,68605.0,0.17807233]
[1729443090139,0.072891,68606.0,68605.0,0.26551101]
[1729443091236,0.072891,68606.0,68605.0,0.17807233]
[1729443093440,0.072891,68606.0,68605.0,0.17793108]
[1729443096353,0.072891,68605.0,68604.0,0.072892]
[1729443096645,0.15334921,68605.0,68604.0,0.072892]
[1729443097845,0.18922832,68609.0,68604.0,0.433692]
[1729443098547,0.072891,68605.0,68604.0,0.433692]
[1729443100244,0.072891,68605.0,68604.0,0.072892]
[1729443100447,0.072891,68605.0,68604.0,0.433692]
[1729443102841,0.11764468,68605.0,68604.0,0.433692]
[1729443103240,0.072891,68605.0,68604.0,0.433692]
[1729443106253,0.072891,68605.0,68604.0,0.072892]
[1729443109151,0.072891,68605.0,68603.0,0.3608]
[1729443109152,0.072888,68608.0,68606.0,0.07289]
[1729443109453,0.072888,68608.0,68607.0,0.0582611]
[1729443110240,0.072888,68608.0,68607.0,0.13115804]
[1729443110946,0.072888,68608.0,68607.0,0.072889]
[1729443111451,0.15334546,68608.0,68607.0,0.05272898]
[1729443116152,0.15334546,68608.0,68602.0,0.27943841]
[1729443116455,0.18939279,68606.0,68605.0,0.072891]
[1729443116657,0.08045746,68606.0,68605.0,0.072891]
[1729443116866,0.15334746,68606.0,68605.0,0.072891]
[1729443117751,0.15334828,68606.0,68605.0,0.072891]
[1729443118352,0.07289,68606.0,68605.0,0.18254234]
[1729443120957,0.07289,68606.0,68605.0,0.18254615]
[1729443122757,0.07289,68606.0,68605.0,0.18251694]
[1729443126164,0.07289,68606.0,68605.0,0.10962594]
[1729443126462,0.072891,68605.0,68604.0,0.05835824]
[1729443126657,0.103091,68605.0,68604.0,0.05835824]
[1729443132566,0.12959145,68605.0,68604.0,0.05835824]
[1729443132864,0.103091,68605.0,68604.0,0.05835824]
[1729443133461,0.18354907,68605.0,68603.0,0.31780484]
[1729443133762,0.08045807,68604.0,68603.0,0.31696484]
[1729443135460,0.08045807,68604.0,68603.0,0.23375292]
[1729443139861,0.103091,68605.0,68603.0,0.23375292]
[1729443140054,0.08045753,68604.0,68603.0,0.23375292]
[1729443141172,0.08045753,68604.0,68603.0,0.072893]
[1729443141361,0.06661372,68605.0,68603.0,0.31627118]
[1729443141561,0.06661372,68605.0,68604.0,0.24337818]
[1729443144764,0.06661372,68605.0,68604.0,0.31583709]
[1729443151773,0.06661372,68605.0,68604.0,0.31580522]
[1729443152969,0.06661372,68605.0,68604.0,0.31580491]
[1729443154473,0.06661372,68605.0,68604.0,0.20503562]
[1729443154677,0.06661372,68605.0,68604.0,0.31589792]
[1729443156470,0.11136725,68605.0,68604.0,0.072892]
[1729443156769,0.14707204,68605.0,68604.0,0.072892]
[1729443163478,0.06661372,68605.0,68604.0,0.31586333]
[1729443164067,0.06661372,68605.0,68604.0,0.072892]
[1729443164278,0.06661372,68605.0,68604.0,0.31585087]
[1729443169976,0.06661372,68605.0,68604.0,0.18373284]
[1729443171479,0.10231904,68605.0,68604.0,0.072892]
[1729443171684,0.14707323,68605.0,68604.0,0.072892]
[1729443178577,0.06661372,68605.0,68604.0,0.1832197]
[1729443179982,0.06661372,68605.0,68604.0,0.31473873]
[1729443180179,0.06661372,68605.0,68604.0,0.1103277]
[1729443184483,0.06661372,68605.0,68604.0,0.24189562]
[1729443186474,0.03013514,68605.0,68604.0,0.24189562]
[1729443186680,0.06584091,68605.0,68602.0,0.03274836]
[1729443186994,0.072894,68603.0,68602.0,0.03274836]
[1729443187180,0.15335453,68603.0,68602.0,0.03274836]
[1729443190387,0.15335453,68603.0,68602.0,0.05895194]
[1729443191591,0.15335345,68603.0,68602.0,0.05895194]
[1729443193684,0.03013514,68605.0,68602.0,0.30146741]
[1729443193885,0.072892,68604.0,68603.0,0.24251547]
[1729443196296,0.072892,68604.0,68603.0,0.24180056]
[1729443201090,0.072892,68604.0,68603.0,0.24182957]
[1729443201684,0.15335109,68604.0,68595.0,0.30378225]
[1729443201887,0.15335109,68604.0,68601.0,0.072895]
[1729443201888,0.08045909,68603.0,68601.0,0.072895]
[1729443202192,0.072892,68604.0,68601.0,0.072895]
[1729443202193,0.08045909,68602.0,68601.0,0.072895]
[1729443207785,0.15335409,68602.0,68601.0,0.072895]
[1729443208090,0.15335409,68602.0,68599.0,0.072897]
[1729443208091,0.072896,68601.0,68599.0,0.072897]
[1729443208395,0.08045909,68600.0,68599.0,0.072897]
[1729443208596,0.072896,68601.0,68599.0,0.2426172]
[1729443208896,0.072896,68601.0,68600.0,0.3155142]
[1729443210788,0.10302714,68605.0,68601.0,0.072896]
[1729443211088,0.072893,68604.0,68602.0,0.24355559]
[1729443211289,0.072893,68604.0,68603.0,0.1111127]
[1729443212899,0.072893,68604.0,68603.0,0.24352146]
[1729443223704,0.153352,68604.0,68602.0,0.09963433]
[1729443223906,0.080459,68603.0,68602.0,0.09963433]
[1729443230307,0.08045904,68603.0,68602.0,0.09963433]
[1729443231605,0.072893,68604.0,68602.0,0.34321984]
[1729443231811,0.03641505,68604.0,68603.0,0.24358551]
[1729443235219,0.03641505,68604.0,68603.0,0.24308674]
[1729443239909,0.03641505,68604.0,68603.0,0.24314854]
[1729443243121,0.03641505,68604.0,68603.0,0.24316192]
[1729443243315,0.03641505,68604.0,68602.0,0.09963333]
[1729443243622,0.03641505,68604.0,68603.0,0.24318033]
[1729443246814,0.03641505,68604.0,68594.0,0.52300726]
[1729443246815,0.11687404,68604.0,68594.0,0.39186]
[1729443247009,0.2699422,68603.0,68594.0,0.3911]
[1729443247224,0.08045899,68602.0,68594.0,0.3911]
[1729443247420,0.22589826,68604.0,68601.0,0.072896]
[1729443247618,0.08045823,68603.0,68601.0,0.072896]
[1729443247816,0.08045823,68602.0,68601.0,0.072896]
[1729443251920,0.15335323,68602.0,68601.0,0.072896]
[1729443253013,0.15335323,68602.0,68601.0,0.09882076]
[1729443253723,0.072895,68602.0,68601.0,0.34216947]
[1729443256327,0.072895,68602.0,68601.0,0.13703501]
[1729443257329,0.072895,68602.0,68601.0,0.34305583]
[1729443257525,0.072895,68602.0,68601.0,0.34305562]
[1729443257727,0.072895,68602.0,68601.0,0.20993101]
[1729443258034,0.072895,68602.0,68601.0,0.34302425]
[1729443261829,0.10859947,68602.0,68601.0,0.09882076]
[1729443262018,0.1533526,68602.0,68601.0,0.09882076]
[1729443262627,0.15335262,68602.0,68601.0,0.09882076]
[1729443263023,0.15335262,68602.0,68601.0,0.02592476]
[1729443263329,0.072896,68601.0,68600.0,0.072896]
[1729443263631,0.072897,68600.0,68597.0,0.0729]
[1729443263823,0.08045762,68599.0,68595.0,0.3608]
[1729443264136,0.08045762,68599.0,68598.0,0.072899]
[1729443264923,0.08045762,68603.0,68601.0,0.072895]
[1729443265230,0.08045934,68602.0,68601.0,0.072895]
[1729443268738,0.03013514,68605.0,68601.0,0.47191264]
[1729443269039,0.39093514,68605.0,68602.0,0.24433783]
[1729443269229,0.072892,68604.0,68603.0,0.24433783]
[1729443269432,0.072892,68604.0,68603.0,0.24433749]
[1729443276833,0.1168725,68604.0,68602.0,0.02602432]
[1729443277034,0.08045802,68603.0,68601.0,0.072895]
[1729443277731,0.08045802,68602.0,68601.0,0.072895]
[1729443278129,0.04475336,68602.0,68601.0,0.072895]
[1729443278335,0.03570466,68602.0,68601.0,0.072895]
[1729443278530,0.03570466,68602.0,68601.0,0.09964406]
[1729443281036,0.08045802,68602.0,68601.0,0.09964406]
[1729443283336,0.15335302,68602.0,68601.0,0.09964406]
[1729443283737,0.072895,68602.0,68601.0,0.34395172]
[1729443284245,0.072895,68602.0,68601.0,0.49769258]
[1729443284638,0.072895,68602.0,68601.0,0.44605326]
[1729443284942,0.072895,68602.0,68601.0,0.34395172]
[1729443285936,0.072895,68602.0,68601.0,0.44605326]
[1729443287230,0.072895,68602.0,68601.0,0.59980559]
[1729443287545,0.072895,68602.0,68601.0,0.44605326]
[1729443288042,0.072895,68602.0,68601.0,0.59982939]
[1729443288447,0.072895,68602.0,68601.0,0.44605326]
[1729443288645,0.072895,68602.0,68601.0,0.34395172]
[1729443290733,0.10860003,68602.0,68601.0,0.09964406]
[1729443290938,0.15335387,68602.0,68601.0,0.09964406]
[1729443291637,0.15335582,68602.0,68601.0,0.09964406]
[1729443295740,0.15335582,68602.0,68601.0,0.07593626]
[1729443296541,0.15335413,68602.0,68601.0,0.07593626]
[1729443298949,0.03013514,68605.0,68601.0,0.3188943]
[1729443299154,0.072892,68604.0,68602.0,0.24295804]
[1729443299340,0.072892,68604.0,68603.0,0.24295804]
[1729443300754,0.072892,68604.0,68603.0,0.24238086]
[1729443303245,0.072892,68604.0,68603.0,0.24241616]
[1729443309251,0.072892,68604.0,68603.0,0.11059325]
[1729443309462,0.072892,68604.0,68603.0,0.24245773]
[1729443309652,0.072892,68604.0,68603.0,0.24218179]
[1729443313953,0.15335016,68604.0,68598.0,0.34447478]
[1729443314149,0.08045816,68603.0,68598.0,0.34371478]
[1729443314353,0.08045816,68602.0,68601.0,0.072896]
[1729443319254,0.03570472,68602.0,68601.0,0.072896]
[1729443319452,0.03570524,68602.0,68601.0,0.072896]
[1729443319653,0.08045934,68602.0,68601.0,0.072896]
[1729443320969,0.072892,68604.0,68601.0,0.31665949]
[1729443321261,0.072892,68604.0,68602.0,0.24376349]
[1729443321460,0.072892,68604.0,68603.0,0.31665749]
[1729443321856,0.03641357,68604.0,68603.0,0.31665749]
[1729443329760,0.03641357,68604.0,68603.0,0.24376349]
[1729443335865,0.08116733,68604.0,68602.0,0.072894]
[1729443336065,0.08045874,68603.0,68602.0,0.072894]
[1729443336873,0.08045874,68603.0,68598.0,0.02615487]
[1729443336874,0.072897,68601.0,68598.0,0.02615487]
[1729443337071,0.15335574,68600.0,68599.0,0.072898]
[1729443338470,0.08046134,68600.0,68599.0,0.072898]
[1729443342775,0.15335834,68600.0,68599.0,0.072898]
[1729443345979,0.08046134,68600.0,68599.0,0.072898]
[1729443348677,0.08045902,68600.0,68599.0,0.072898]
[1729443350969,0.03013514,68605.0,68599.0,0.46936654]
[1729443351171,0.03013514,68605.0,68601.0,0.10210532]
[1729443351366,0.072894,68603.0,68602.0,0.24302902]
[1729443357782,0.072894,68603.0,68602.0,0.24196256]
[1729443361080,0.072894,68603.0,68602.0,0.24208139]
[1729443366074,0.072894,68603.0,68600.0,0.072897]
[1729443366075,0.15335327,68603.0,68600.0,0.072897]
[1729443366282,0.08045929,68602.0,68600.0,0.072897]
[1729443366878,0.08045929,68602.0,68597.0,0.02615591]
[1729443367190,0.03013514,68605.0,68589.0,0.15702692]
[1729443367191,0.44125929,68601.0,68589.0,0.15702692]
[1729443367487,0.08045929,68600.0,68594.0,0.072902]
[1729443368091,0.08045929,68600.0,68589.0,0.02818432]
[1729443368384,0.072903,68594.0,68591.0,0.072906]
[1729443368591,0.08045929,68593.0,68591.0,0.072906]
[1729443372992,0.03570523,68592.0,68591.0,0.072906]
[1729443373587,0.03570523,68593.0,68591.0,0.072906]
[1729443373792,0.03570523,68592.0,68591.0,0.072906]
[1729443373984,0.03570523,68593.0,68591.0,0.072906]
[1729443374290,0.38653769,68596.0,68592.0,0.24242641]
[1729443374496,0.072903,68594.0,68593.0,0.2423502]
[1729443374994,0.111003,68594.0,68593.0,0.2423502]
[1729443377196,0.71632246,68595.0,68593.0,0.2423502]
[1729443377389,0.2421,68592.0,68585.0,0.10195568]
[1729443377690,0.3608,68586.0,68585.0,0.10195874]
[1729443377896,0.433712,68586.0,68585.0,0.10195874]
[1729443378190,0.433712,68586.0,68578.0,0.07292]
[1729443378191,0.072914,68584.0,68582.0,0.10195874]
[1729443378398,0.072916,68583.0,68579.0,0.11672223]
[1729443378588,0.072916,68583.0,68578.0,0.07292]
[1729443378589,0.072916,68583.0,68580.0,0.14988388]
[1729443378785,0.072916,68583.0,68581.0,0.14988388]
[1729443378991,0.072916,68583.0,68582.0,0.14988388]
[1729443379392,0.072916,68583.0,68582.0,0.10188542]
[1729443380095,0.072916,68583.0,68579.0,0.072919]
[1729443380296,0.072916,68583.0,68580.0,0.072918]
[1729443380887,0.072916,68582.0,68580.0,0.072918]
[1729443381090,0.3864851,68586.0,68580.0,0.072918]
[1729443381398,0.3864851,68586.0,68580.0,0.14567209]
[1729443382491,0.072916,68582.0,68580.0,0.14567209]
[1729443383491,0.072916,68582.0,68580.0,0.072918]
[1729443384892,0.072916,68582.0,68579.0,0.07275409]
[1729443389306,0.072916,68582.0,68578.0,0.07292]
[1729443389596,0.072917,68581.0,68578.0,0.07292]
[1729443393593,0.072914,68584.0,68574.0,0.072924]
[1729443393794,0.0345,68585.0,68576.0,0.072921]
[1729443394002,0.072917,68581.0,68576.0,0.072921]
[1729443395891,0.072918,68580.0,68576.0,0.072921]
[1729443396196,0.072918,68580.0,68578.0,0.08730491]
[1729443396391,0.072918,68580.0,68579.0,0.19501306]
[1729443396599,0.072918,68580.0,68579.0,0.10770815]
[1729443397901,0.072918,68580.0,68579.0,0.10870815]
[1729443398402,0.072918,68580.0,68579.0,0.19601306]
[1729443400997,0.072918,68580.0,68579.0,0.10870815]
[1729443401198,0.072918,68580.0,68579.0,0.19601306]
[1729443402899,0.3608,68582.0,68580.0,0.072918]
[1729443403104,0.3608,68582.0,68581.0,0.19512038]
[1729443403315,0.0256851,68586.0,68581.0,0.10770815]
[1729443403611,0.072911,68587.0,68585.0,0.072913]
[1729443403799,0.072911,68587.0,68586.0,0.10770815]
[1729443404202,0.072911,68587.0,68586.0,0.10772532]
[1729443404411,0.072911,68587.0,68585.0,0.072913]
[1729443404412,0.15339339,68587.0,68585.0,0.072913]
[1729443404607,0.08048239,68586.0,68585.0,0.072913]
[1729443405798,0.15339439,68586.0,68582.0,0.037]
[1729443405999,0.08048239,68585.0,68582.0,0.037]
[1729443407405,0.08048239,68585.0,68584.0,0.072914]
[1729443410411,0.15339539,68585.0,68584.0,0.072914]
[1729443411417,0.072913,68585.0,68584.0,0.18076663]
[1729443413517,0.072913,68585.0,68584.0,0.10785263]
[1729443415723,0.072913,68585.0,68584.0,0.2363857]
[1729443416618,0.072913,68585.0,68584.0,0.10785263]
[1729443417325,0.072913,68585.0,68584.0,0.23639656]
[1729443417617,0.072913,68585.0,68584.0,0.10785263]
[1729443417927,0.072913,68585.0,68584.0,0.23640664]
[1729443419424,0.072913,68585.0,68578.0,0.10188542]
[1729443419425,0.11690666,68585.0,68578.0,0.10188542]
[1729443419626,0.08048219,68584.0,68582.0,0.072915]
[1729443419820,0.08048219,68583.0,68582.0,0.072915]
[1729443421427,0.08047989,68583.0,68582.0,0.072915]
[1729443423528,0.0804797,68583.0,68582.0,0.072915]
[1729443426316,0.02653111,68588.0,68584.0,0.072914]
[1729443426630,0.072909,68589.0,68587.0,0.04376142]
[1729443427128,0.072909,68588.0,68587.0,0.04376142]
[1729443431631,0.072909,68588.0,68586.0,0.072911]
[1729443434428,0.13278684,68587.0,68576.0,0.0356]
[1729443434633,0.13278684,68586.0,68576.0,0.0356]
[1729443434832,0.18965084,68581.0,68580.0,0.072918]
[1729443435135,0.08047915,68581.0,68580.0,0.072918]
[1729443439832,0.08047915,68581.0,68577.0,0.3608]
[1729443440137,0.072916,68582.0,68578.0,0.07292]
[1729443440138,0.08047915,68580.0,68578.0,0.07292]
[1729443440330,0.08047915,68579.0,68578.0,0.07292]
[1729443441334,0.072916,68582.0,68578.0,0.46856197]
[1729443441636,0.072916,68582.0,68580.0,0.10212092]
[1729443441839,0.072916,68582.0,68581.0,0.2425212]
[1729443442533,0.09970786,68582.0,68581.0,0.2425212]
[1729443442936,0.072916,68582.0,68581.0,0.2425212]
[1729443446243,0.072916,68582.0,68581.0,0.11063955]
[1729443447132,0.072916,68582.0,68581.0,0.24230815]
[1729443447337,0.072916,68582.0,68581.0,0.11063955]
[1729443447530,0.072916,68582.0,68581.0,0.19815593]
[1729443448125,0.072916,68582.0,68581.0,0.11063955]
[1729443448333,0.38691405,68584.0,68581.0,0.11063955]
[1729443448633,0.38691405,68584.0,68582.0,0.11063955]
[1729443448942,0.38691405,68584.0,68583.0,0.11063955]
[1729443449124,0.3608,68584.0,68583.0,0.11063955]
[1729443449636,0.433714,68584.0,68583.0,0.11063955]
[1729443453035,0.433714,68584.0,68583.0,0.19813735]
[1729443454434,0.675814,68584.0,68583.0,0.11063955]
[1729443454637,0.675814,68584.0,68583.0,0.18355907]
[1729443455146,0.675814,68584.0,68583.0,0.12525907]
[1729443455351,0.675814,68584.0,68583.0,0.07291952]
[1729443455548,0.675814,68584.0,68582.0,0.07291952]
[1729443455549,0.315015,68583.0,68582.0,0.07291952]
[1729443456058,0.072921,68577.0,68576.0,0.0874978]
[1729443456350,0.072921,68577.0,68574.0,0.08748375]
[1729443456351,0.3608,68577.0,68574.0,0.08748375]
[1729443456551,0.11759451,68576.0,68566.0,0.072933]
[1729443456743,0.072932,68567.0,68566.0,0.072933]
[1729443456940,0.072938,68561.0,68558.0,0.147241]
[1729443457246,0.10865885,68561.0,68559.0,0.072939]
[1729443458449,0.10865885,68561.0,68560.0,0.0031876]
[1729443458657,0.15343883,68561.0,68560.0,0.0031876]
[1729443459065,0.08050083,68561.0,68560.0,0.0031876]
[1729443459443,0.03572085,68561.0,68560.0,0.0031876]
[1729443459639,0.03572085,68564.0,68560.0,0.0031876]
[1729443459844,0.072934,68565.0,68560.0,0.0031876]
[1729443459845,0.03572085,68563.0,68560.0,0.0031876]
[1729443460039,0.0354,68566.0,68560.0,0.0031876]
[1729443460353,0.08050452,68565.0,68560.0,0.0031876]
[1729443460741,0.03572529,68565.0,68560.0,0.0021876]
[1729443460942,0.03572529,68564.0,68560.0,0.0021876]
[1729443461147,0.03572529,68563.0,68560.0,0.0021876]
[1729443461355,0.10866229,68562.0,68560.0,0.0021876]
[1729443461547,0.072937,68562.0,68560.0,0.0021876]
[1729443463551,0.3608,68567.0,68561.0,0.28317874]
[1729443463552,0.34510185,68567.0,68561.0,0.28317874]
[1729443463752,0.072936,68563.0,68562.0,0.13118413]
[1729443464257,0.03643572,68563.0,68562.0,0.13118413]
[1729443465748,0.072946,68554.0,68551.0,0.10180701]
[1729443465943,0.072947,68553.0,68552.0,0.13005089]
[1729443469252,0.3608,68554.0,68553.0,0.072947]
[1729443469561,0.3608,68554.0,68553.0,0.20299789]
[1729443470151,0.3608,68560.0,68557.0,0.072942]
[1729443470355,0.3608,68560.0,68558.0,0.27548959]
[1729443470553,0.3608,68560.0,68559.0,0.23858959]
[1729443470751,0.3608,68560.0,68559.0,0.3108328]
[1729443471448,0.073932,68567.0,68559.0,0.3108328]
[1729443471652,0.3608,68566.0,68560.0,0.3480318]
[1729443471951,0.3608,68566.0,68561.0,0.2378928]
[1729443472155,0.3608,68566.0,68562.0,0.2378928]
[1729443472356,0.3608,68566.0,68561.0,0.072938]
[1729443472357,0.3608,68566.0,68563.0,0.23732157]
[1729443472661,0.433733,68566.0,68564.0,0.1085387]
[1729443472860,0.433733,68566.0,68565.0,0.1085387]
[1729443478367,0.072933,68566.0,68565.0,0.1085387]
[1729443478666,0.44130689,68566.0,68562.0,0.072937]